bitfinex/quotes_SOLUSD_20250714
["timestamp","ask_amount","ask_price","bid_price","bid_amount"]
[1752473623673,0.06,165.71,165.69,6.2951967]
[1752473624002,0.06,165.71,165.7,37.8351967]
[1752473624592,0.06,165.71,165.7,38.5151967]
[1752473625129,0.06,165.71,165.7,42.69534014]
[1752473625271,0.06,165.71,165.7,48.89044014]
[1752473625472,0.1,165.76,165.7,48.89044014]
[1752473625676,0.1,165.76,165.74,10.47534014]
[1752473625972,0.1,165.76,165.75,43.59274014]
[1752473626290,0.1,165.76,165.75,44.27274014]
[1752473626470,0.1,165.76,165.75,33.7974]
[1752473626669,0.1,165.76,165.75,44.27274014]
[1752473629599,0.1,165.76,165.75,33.7974]
[1752473629781,16.00487681,165.76,165.75,31.54]
[1752473630704,5.52953667,165.76,165.75,31.54]
[1752473631281,0.1,165.76,165.75,31.54]
[1752473631475,0.1,165.76,165.75,32.22]
[1752473632090,0.1,165.76,165.75,42.69534014]
[1752473632804,0.1,165.76,165.73,10.47534014]
[1752473633000,0.1,165.76,165.72,0.68]
[1752473633001,0.1,165.76,165.74,31.52]
[1752473633193,5.52959305,165.76,165.74,31.52]
[1752473633402,0.5,165.75,165.74,32.2]
[1752473635402,0.5,165.75,165.74,42.67534014]
[1752473636588,0.1,165.76,165.74,42.67534014]
[1752473636804,0.1,165.76,165.75,11.15534014]
[1752473637191,0.1,165.76,165.75,0.68]
[1752473637397,0.1,165.76,165.75,11.15534014]
[1752473639713,0.1,165.76,165.75,0.68]
[1752473640093,0.1,165.76,165.75,11.15534014]
[1752473640290,0.1,165.76,165.75,0.68]
[1752473640697,16.71499333,165.76,165.75,31.52]
[1752473641084,17.21499333,165.76,165.75,31.52]
[1752473641523,6.73965319,165.76,165.75,31.52]
[1752473641696,17.21499333,165.76,165.75,31.52]
[1752473642021,0.6,165.76,165.75,31.52]
[1752473642225,0.6,165.76,165.75,32.19]
[1752473642592,0.6,165.76,165.75,42.66534014]
[1752473642996,0.1,165.76,165.75,42.66534014]
[1752473644126,0.06,165.77,165.76,16.78468397]
[1752473644421,0.06,165.8,165.76,53.93002411]
[1752473644718,0.06,165.8,165.79,10.47534014]
[1752473644893,0.06,165.8,165.79,41.97534014]
[1752473645088,0.06,165.8,165.79,42.64534014]
[1752473646413,0.06,165.8,165.79,59.43002411]
[1752473647206,0.06,165.82,165.8,24.87138397]
[1752473647389,0.1,165.83,165.82,16.78468397]
[1752473647731,0.1,165.83,165.82,10.47534014]
[1752473648017,0.1,165.83,165.82,68.64534014]
[1752473649419,5.42757206,165.82,165.75,8.8622]
[1752473649605,10.47534014,165.79,165.75,8.8622]
[1752473649800,10.47534014,165.79,165.76,32.17]
[1752473650011,6.12757206,165.82,165.76,31.5]
[1752473650315,10.47534014,165.8,165.77,0.67]
[1752473650518,10.47534014,165.81,165.78,32.17]
[1752473650716,10.57534014,165.83,165.79,0.67]
[1752473650927,10.47534014,165.8,165.76,0.67]
[1752473651094,10.47534014,165.79,165.77,31.5]
[1752473651515,6.12785763,165.82,165.77,31.5]
[1752473651709,6.12785763,165.82,165.77,32.17]
[1752473651910,0.1,165.83,165.82,1.526]
[1752473652123,0.1,165.83,165.82,43.50134014]
[1752473652318,0.1,165.83,165.82,33.696]
[1752473652500,10.57534014,165.83,165.82,31.5]
[1752473652699,0.1,165.83,165.82,31.5]
[1752473655596,11.27534014,165.83,165.82,31.5]
[1752473657200,16.7025849,165.83,165.82,31.5]
[1752473657414,33.48726887,165.83,165.75,96.133]
[1752473657608,10.47534014,165.79,165.76,31.48]
[1752473657808,11.17534014,165.79,165.76,31.48]
[1752473658423,0.7,165.79,165.76,31.48]
[1752473658610,10.47534014,165.8,165.76,31.48]
[1752473659432,10.47534014,165.78,165.76,31.48]
[1752473659640,11.17534014,165.78,165.76,31.48]
[1752473660507,0.7,165.78,165.76,31.48]
[1752473660740,11.17534014,165.78,165.76,31.48]
[1752473662813,0.7,165.78,165.76,31.48]
[1752473663439,0.5,165.77,165.76,31.48]
[1752473663809,11.67534014,165.77,165.76,31.48]
[1752473664616,17.10454928,165.77,165.7,100.77534014]
[1752473664832,11.17534014,165.76,165.71,41.97534014]
[1752473665142,0.7,165.75,165.71,41.97534014]
[1752473665340,11.17534014,165.76,165.71,42.64534014]
[1752473666136,11.17534014,165.75,165.71,31.5]
[1752473666337,0.7,165.75,165.71,42.64534014]
[1752473666707,10.47534014,165.76,165.71,32.17]
[1752473666911,11.67534014,165.77,165.72,11.14534014]
[1752473667344,0.7,165.76,165.72,11.14534014]
[1752473668129,0.5,165.77,165.75,10.47534014]
[1752473668333,0.5,165.77,165.76,31.5]
[1752473670321,1.2,165.77,165.76,31.5]
[1752473670521,0.5,165.77,165.76,31.5]
[1752473671939,11.66534014,165.77,165.76,31.5]
[1752473675242,1.19,165.77,165.76,31.5]
[1752473675446,11.66534014,165.77,165.76,31.5]
[1752473675944,0.5,165.77,165.76,31.5]
[1752473676547,0.5,165.77,165.76,42.63534014]
[1752473676918,1.19,165.77,165.76,31.5]
[1752473677320,11.66534014,165.77,165.76,31.5]
[1752473677544,1.19,165.77,165.76,31.5]
[1752473678123,0.5,165.77,165.76,31.5]
[1752473678734,0.5,165.77,165.76,32.16]
[1752473679050,0.5,165.77,165.76,42.63534014]
[1752473679249,0.5,165.77,165.76,32.16]
[1752473679559,16.59297124,165.82,165.76,42.63534014]
[1752473679730,16.59297124,165.82,165.77,10.47534014]
[1752473679928,15.90297124,165.82,165.78,31.5]
[1752473680129,0.69,165.81,165.78,31.5]
[1752473680628,0.69,165.8,165.78,31.5]
[1752473680828,11.16534014,165.8,165.78,31.5]
[1752473681444,0.69,165.8,165.78,31.5]
[1752473682051,10.47534014,165.81,165.78,31.5]
[1752473682256,16.59328606,165.81,165.78,31.5]
[1752473682432,0.69,165.81,165.78,31.5]
[1752473683153,0.69,165.8,165.78,31.5]
[1752473683951,11.70861035,165.81,165.78,31.5]
[1752473684144,12.39861035,165.81,165.78,31.5]
[1752473684844,0.69,165.8,165.78,31.5]
[1752473685043,6.28066736,165.81,165.78,31.5]
[1752473685231,6.97066736,165.82,165.78,32.16]
[1752473685833,7.03066736,165.82,165.78,31.5]
[1752473686037,6.97066736,165.81,165.78,31.5]
[1752473686365,6.28066736,165.79,165.77,31.48]
[1752473686556,0.69,165.78,165.77,31.48]
[1752473686762,6.97066736,165.78,165.77,31.48]
[1752473687238,6.97066736,165.78,165.76,0.03]
[1752473687431,23.75535133,165.77,165.76,0.03]
[1752473687635,6.97066736,165.78,165.76,0.03]
[1752473688729,6.28066736,165.78,165.76,0.03]
[1752473689731,11.70933522,165.79,165.76,0.03]
[1752473690129,12.39933522,165.79,165.76,0.03]
[1752473690555,6.97066736,165.79,165.76,0.03]
[1752473690765,11.76828154,165.82,165.77,38.42066736]
[1752473690971,0.06,165.82,165.78,6.94066736]
[1752473691133,0.06,165.82,165.79,6.28066736]
[1752473691457,0.06,165.82,165.8,31.48]
[1752473691762,0.06,165.82,165.8,32.14]
[1752473694858,0.06,165.82,165.8,31.48]
[1752473695063,0.06,165.82,165.81,0.66]
[1752473695375,0.06,165.82,165.81,6.94066736]
[1752473695940,0.06,165.82,165.81,0.66]
[1752473696149,0.06,165.82,165.81,6.94066736]
[1752473700572,0.06,165.82,165.8,31.48]
[1752473701657,0.06,165.82,165.81,6.28066736]
[1752473701951,0.06,165.82,165.81,0.71]
[1752473702574,0.06,165.82,165.8,37.76066736]
[1752473702771,0.06,165.82,165.81,6.28066736]
[1752473703279,0.06,165.82,165.8,32.19]
[1752473703481,0.06,165.82,165.81,6.28066736]
[1752473703980,0.06,165.82,165.8,32.19]
[1752473704149,0.06,165.82,165.81,6.28066736]
[1752473704958,0.06,165.82,165.81,0.71]
[1752473705151,0.06,165.82,165.81,6.99066736]
[1752473706149,0.78,165.82,165.8,31.48]
[1752473706475,0.06,165.82,165.8,31.48]
[1752473706773,0.06,165.82,165.8,37.76066736]
[1752473707070,0.06,165.82,165.8,38.47066736]
[1752473707368,0.06,165.82,165.8,6.28066736]
[1752473707718,0.78,165.82,165.81,31.46]
[1752473707866,0.06,165.82,165.81,31.46]
[1752473710664,0.06,165.82,165.81,38.45066736]
[1752473713271,0.06,165.82,165.81,39.97326736]
[1752473713464,0.06,165.82,165.81,129.57326736]
[1752473714068,0.06,165.84,165.81,142.15726669]
[1752473714276,0.06,165.84,165.83,32.28066736]
[1752473714454,0.06,165.84,165.83,63.74066736]
[1752473714778,0.06,165.84,165.83,64.45066736]
[1752473718368,0.06,165.84,165.83,26.71]
[1752473718578,0.06,165.84,165.83,64.43066736]
[1752473719568,0.06,165.84,165.83,58.15]
[1752473719770,0.06,165.84,165.83,64.43066736]
[1752473724294,0.06,165.84,165.83,70.46093932]
[1752473724491,0.06,165.84,165.83,70.71133472]
[1752473725798,0.06,165.84,165.83,76.74160668]
[1752473725979,0.06,165.84,165.83,58.15]
[1752473726184,0.06,165.84,165.83,76.74160668]
[1752473726995,0.06,165.84,165.83,70.71133472]
[1752473727290,0.06,165.84,165.83,64.43066736]
[1752473727704,0.06,165.84,165.83,70.71133472]
[1752473728069,0.06,165.84,165.83,76.74160668]
[1752473729487,0.06,165.84,165.83,76.77160668]
[1752473731091,0.06,165.89,165.85,1.6151]
[1752473731407,0.1,165.97,165.93,42.78468397]
[1752473731706,0.1,165.97,165.93,111.06207766]
[1752473732006,0.66,166.03,165.99,26.0]
[1752473732182,6.77832126,166.09,165.99,6.28066736]
[1752473732183,0.66,166.01,165.99,6.28066736]
[1752473732391,0.66,166.01,165.99,37.70066736]
[1752473732692,0.66,166.04,165.99,44.65133472]
[1752473732897,0.66,166.07,165.99,51.25533472]
[1752473733094,0.66,166.07,166.06,6.28066736]
[1752473733296,0.66,166.07,166.06,37.70066736]
[1752473734415,0.66,166.09,166.06,37.70066736]
[1752473734586,0.66,166.08,166.07,6.28066736]
[1752473735404,0.06,166.1,166.07,6.28066736]
[1752473735583,0.66,166.09,166.08,31.42]
[1752473735783,0.66,166.09,166.06,6.28066736]
[1752473735988,6.94066736,166.09,166.07,31.42]
[1752473736196,6.34066736,166.1,166.08,31.42]
[1752473736393,0.06,166.1,166.08,31.42]
[1752473736886,0.66,166.09,166.08,31.42]
[1752473737730,0.66,166.09,166.05,6.28066736]
[1752473737909,6.94066736,166.09,166.06,31.4]
[1752473738084,0.66,166.08,166.06,31.4]
[1752473738289,0.66,166.07,166.06,31.4]
[1752473738911,0.66,166.07,166.06,37.68066736]
[1752473739217,0.66,166.09,166.06,37.68066736]
[1752473739398,0.66,166.08,166.06,37.68066736]
[1752473739599,0.72,166.1,166.07,6.28066736]
[1752473739897,0.72,166.1,166.08,31.4]
[1752473740098,0.06,166.1,166.08,37.68066736]
[1752473740300,0.72,166.1,166.08,37.68066736]
[1752473740506,0.72,166.1,166.08,31.4]
[1752473741412,6.94066736,166.09,166.04,6.28066736]
[1752473741603,0.66,166.08,166.05,31.4]
[1752473741802,0.66,166.07,166.05,31.4]
[1752473743911,0.66,166.07,166.04,6.28066736]
[1752473744100,0.66,166.07,166.03,27.6257]
[1752473744298,0.66,166.06,166.03,1.6257]
[1752473744509,0.66,166.05,166.04,31.4]
[1752473744690,6.94066736,166.05,166.04,31.4]
[1752473745239,5.41936702,166.08,166.04,31.4]
[1752473745420,6.28066736,166.06,166.04,31.4]
[1752473745603,6.94066736,166.06,166.04,31.4]
[1752473746193,11.69981026,166.08,166.04,31.4]
[1752473746415,6.0791429,166.08,166.04,38.35066736]
[1752473746611,6.13848138,166.1,166.05,6.95066736]
[1752473746907,0.72,166.1,166.07,6.28066736]
[1752473747221,0.06,166.1,166.08,31.38]
[1752473748402,0.06,166.1,166.08,37.66066736]
[1752473748615,0.06,166.1,166.08,31.38]
[1752473748801,0.06,166.1,166.08,37.66066736]
[1752473749617,0.06,166.1,166.08,38.33066736]
[1752473750419,0.06,166.1,166.09,6.95066736]
[1752473752025,0.06,166.1,166.09,37.66066736]
[1752473752822,0.06,166.1,166.09,38.33066736]
[1752473753732,0.06,166.1,166.09,32.05]
[1752473754036,0.06,166.1,166.09,38.33066736]
[1752473755426,0.06,166.1,166.09,31.38]
[1752473756731,0.06,166.1,166.09,38.33066736]
[1752473756928,0.06,166.1,166.09,32.05]
[1752473757227,0.06,166.1,166.09,38.33066736]
[1752473760715,0.06,166.1,166.09,37.64066736]
[1752473761034,0.06,166.1,166.09,38.30066736]
[1752473764135,0.06,166.1,166.09,6.94066736]
[1752473764313,0.06,166.1,166.09,63.64066736]
[1752473764709,0.06,166.1,166.09,64.30066736]
[1752473765729,0.06,166.1,166.09,153.90066736]
[1752473770250,0.06,166.1,166.09,87.1061834]
[1752473770417,0.06,166.1,166.09,176.7061834]
[1752473770932,0.06,166.1,166.09,87.1061834]
[1752473771330,0.06,166.1,166.09,170.68535133]
[1752473771745,0.06,166.1,166.09,81.08535133]
[1752473772336,0.06,166.1,166.09,87.1061834]
[1752473772953,0.06,166.1,166.09,74.80468397]
[1752473773245,0.06,166.1,166.09,176.7061834]
[1752473773656,0.06,166.1,166.09,58.0]
[1752473773954,0.06,166.1,166.09,64.28066736]
[1752473774133,0.06,166.1,166.09,87.6882666]
[1752473774647,0.06,166.1,166.09,177.2882666]
[1752473774961,0.06,166.1,166.09,176.6861834]
[1752473775281,0.06,166.13,166.12,48.96348397]
[1752473775459,0.06,166.13,166.12,86.58415133]
[1752473775637,0.06,166.13,166.12,87.24415133]
[1752473776539,0.06,166.13,166.12,93.26389609]
[1752473777036,0.06,166.13,166.12,87.24415133]
[1752473777636,0.06,166.13,166.12,93.26389609]
[1752473779060,0.06,166.13,166.12,87.24415133]
[1752473779984,0.06,166.13,166.1,0.66]
[1752473780255,0.06,166.13,166.12,6.28066736]
[1752473780949,0.78,166.13,166.12,6.28066736]
[1752473781465,0.78,166.13,166.09,91.2285]
[1752473781642,0.78,166.13,166.11,6.28066736]
[1752473781842,0.06,166.13,166.12,31.34]
[1752473782342,0.06,166.13,166.12,37.62066736]
[1752473782750,0.06,166.13,166.12,31.34]
[1752473783046,0.06,166.13,166.12,37.62066736]
[1752473784154,0.06,166.13,166.12,38.28066736]
[1752473784763,0.06,166.13,166.12,37.62066736]
[1752473786061,0.78,166.13,166.12,31.34]
[1752473787071,0.78,166.13,166.1,6.28066736]
[1752473787370,0.06,166.13,166.11,37.60066736]
[1752473787866,0.78,166.13,166.11,37.60066736]
[1752473788373,0.06,166.13,166.12,6.94066736]
[1752473788760,0.06,166.13,166.12,0.66]
[1752473788970,0.06,166.13,166.12,6.94066736]
[1752473790371,0.06,166.13,166.12,6.28066736]
[1752473790556,0.06,166.13,166.12,6.94066736]
[1752473790741,0.06,166.13,166.12,122.54066736]
[1752473791260,0.06,166.13,166.12,115.6]
[1752473791474,0.06,166.13,166.12,121.88066736]
[1752473793173,0.06,166.13,166.12,115.6]
[1752473793372,0.73,166.13,166.12,115.6]
[1752473794067,7.01066736,166.13,166.12,31.32]
[1752473795651,7.01066736,166.13,166.1,0.03]
[1752473795652,12.42811153,166.13,166.1,0.03]
[1752473795853,6.28066736,166.11,166.1,0.03]
[1752473796051,6.28066736,166.11,166.1,31.35]
[1752473796373,6.95066736,166.11,166.1,31.35]
[1752473798074,6.95066736,166.11,166.1,0.03]
[1752473798261,6.95066736,166.11,166.1,31.35]
[1752473798656,12.3687638,166.11,166.1,31.35]
[1752473799162,6.95066736,166.11,166.1,31.35]
[1752473799674,12.3687638,166.11,166.1,31.35]
[1752473799980,6.95066736,166.11,166.1,31.35]
[1752473800358,12.3687638,166.11,166.1,31.35]
[1752473800966,6.95066736,166.11,166.1,31.35]
[1752473802673,0.67,166.12,166.1,31.35]
[1752473803360,0.06,166.13,166.1,37.63066736]
[1752473803566,0.67,166.12,166.1,31.35]
[1752473803998,6.28066736,166.12,166.1,31.35]
[1752473804175,0.67,166.11,166.1,31.35]
[1752473804492,6.95066736,166.11,166.1,31.35]
[1752473804993,0.67,166.11,166.1,31.35]
[1752473805166,6.95066736,166.11,166.1,31.35]
[1752473806898,7.01066736,166.13,166.1,31.35]
[1752473807065,6.95066736,166.12,166.1,31.35]
[1752473807267,6.95066736,166.11,166.1,31.35]
[1752473810691,12.3687638,166.11,166.1,31.35]
[1752473811084,29.15344777,166.11,166.1,31.35]
[1752473811473,16.78468397,166.1,166.02,7.9028]
[1752473811789,6.28066736,166.03,166.01,25.96]
[1752473812094,16.78468397,166.07,166.02,31.32]
[1752473812294,6.28066736,166.03,166.02,31.32]
[1752473812832,6.95066736,166.03,166.02,31.32]
[1752473813989,12.37137446,166.03,166.02,31.32]
[1752473814890,0.67,166.04,166.02,31.32]
[1752473815076,16.78468397,166.09,166.02,31.32]
[1752473815077,6.95066736,166.03,166.02,31.32]
[1752473815394,6.95066736,166.03,166.0,0.03]
[1752473815599,16.78468397,166.03,166.02,31.32]
[1752473815785,23.06535133,166.03,166.02,31.32]
[1752473815972,18.96447922,166.1,166.02,31.32]
[1752473816174,6.28066736,166.04,166.02,31.32]
[1752473816373,6.95066736,166.03,166.02,31.32]
[1752473816778,12.37137446,166.03,166.02,31.32]
[1752473816979,12.37137446,166.03,166.02,31.35]
[1752473817777,29.15605843,166.03,166.02,31.35]
[1752473818500,22.87539107,166.03,166.02,31.35]
[1752473818988,6.95066736,166.03,166.02,31.35]
[1752473820187,0.67,166.05,166.02,31.35]
[1752473820493,6.28066736,166.06,166.02,31.35]
[1752473820695,0.67,166.06,166.02,37.63066736]
[1752473821002,6.28066736,166.07,166.02,37.63066736]
[1752473821210,6.96066736,166.07,166.03,0.69]
[1752473821507,0.68,166.07,166.03,6.97066736]
[1752473821691,6.96066736,166.07,166.03,0.69]
[1752473821997,0.68,166.06,166.02,37.63066736]
[1752473822201,0.68,166.06,166.02,38.32066736]
[1752473824892,6.28066736,166.07,166.03,0.69]
[1752473825209,0.68,166.07,166.03,6.97066736]
[1752473826012,6.96066736,166.07,166.03,0.69]
[1752473826406,0.68,166.07,166.03,6.97066736]
[1752473826786,0.68,166.06,166.02,37.63066736]
[1752473827111,6.28066736,166.03,166.02,0.03]
[1752473827409,6.96066736,166.03,166.02,31.33]
[1752473827618,6.28066736,166.04,166.02,31.33]
[1752473829216,6.96066736,166.03,166.02,31.33]
[1752473831311,29.16605843,166.03,166.02,31.33]
[1752473831816,29.16605843,166.03,166.02,0.03]
[1752473832389,16.78468397,166.02,166.0,0.03]
[1752473832594,17.46468397,166.02,166.0,0.03]
[1752473832789,23.74535133,166.01,166.0,0.03]
[1752473833220,29.16671148,166.01,166.0,0.03]
[1752473833590,0.68,166.01,166.0,0.03]
[1752473834012,6.28066736,166.02,166.0,0.03]
[1752473834317,6.96066736,166.01,166.0,0.03]
[1752473835518,12.38202751,166.01,166.0,0.03]
[1752473836411,18.66269487,166.01,166.0,0.03]
[1752473836603,35.44737884,166.01,166.0,0.03]
[1752473837190,29.16671148,166.01,166.0,0.03]
[1752473837789,22.88604412,166.01,166.0,0.03]
[1752473837999,29.16671148,166.01,166.0,0.03]
[1752473839206,6.28066736,166.01,166.0,0.03]
[1752473841103,12.38202751,166.01,166.0,0.03]
[1752473841797,35.44737884,166.01,166.0,0.03]
[1752473842607,29.16671148,166.01,166.0,0.03]
[1752473844015,35.44737884,166.01,166.0,0.03]
[1752473844405,29.16671148,166.01,166.0,0.03]
[1752473844908,35.44737884,166.01,166.0,0.03]
[1752473845103,16.78468397,166.0,165.96,31.3]
[1752473845336,16.78468397,165.96,165.93,0.03]
[1752473845525,23.06535133,165.94,165.93,0.03]
[1752473846032,23.74535133,165.94,165.93,0.03]
[1752473846808,29.16899843,165.94,165.93,0.03]
[1752473847022,35.44966579,165.94,165.93,0.03]
[1752473848225,35.44966579,165.94,165.89,31.3]
[1752473848226,16.78468397,165.93,165.87,31.3]
[1752473848426,32.22409957,165.94,165.87,31.3]
[1752473848427,0.68,165.92,165.87,31.3]
[1752473848619,6.28066736,165.9,165.87,31.99]
[1752473848825,6.28066736,165.9,165.87,31.3]
[1752473849012,10.45705702,165.88,165.87,31.3]
[1752473849328,27.92174099,165.88,165.87,31.3]
[1752473851005,33.34734986,165.88,165.87,31.3]
[1752473851427,16.78468397,165.87,165.85,0.2]
[1752473851630,27.24174099,165.87,165.85,31.5]
[1752473852222,10.45705702,165.86,165.85,31.5]
[1752473852731,27.91174099,165.86,165.85,0.2]
[1752473853237,33.3380041,165.86,165.85,0.2]
[1752473855336,33.3380041,165.86,165.83,0.03]
[1752473855531,27.24174099,165.84,165.83,0.03]
[1752473855915,27.91174099,165.84,165.83,0.03]
[1752473857233,33.3386585,165.84,165.83,0.03]
[1752473857540,22.88160148,165.84,165.83,0.03]
[1752473857871,33.3386585,165.84,165.83,0.03]
[1752473858834,27.91174099,165.84,165.83,0.03]
[1752473859144,16.78468397,165.84,165.83,0.03]
[1752473859447,0.67,165.87,165.83,0.03]
[1752473859625,16.78468397,165.87,165.84,0.66]
[1752473859812,16.78468397,165.87,165.85,0.66]
[1752473860320,16.78468397,165.87,165.83,0.69]
[1752473860521,10.45705702,165.87,165.84,0.66]
[1752473860723,27.24174099,165.88,165.84,0.66]
[1752473861127,10.45705702,165.87,165.84,0.66]
[1752473861329,10.45705702,165.86,165.84,31.32]
[1752473862264,10.45705702,165.85,165.84,31.32]
[1752473862421,0.67,165.86,165.84,31.32]
[1752473862422,10.45705702,165.86,165.84,31.32]
[1752473863520,10.45705702,165.86,165.84,31.98]
[1752473863722,15.88304067,165.87,165.84,31.98]
[1752473864220,10.45705702,165.87,165.84,31.98]
[1752473865146,27.24174099,165.88,165.85,0.66]
[1752473865817,6.09460423,165.92,165.86,0.66]
[1752473866043,16.78468397,165.89,165.86,0.66]
[1752473866353,27.24174099,165.89,165.86,0.66]
[1752473866561,16.78468397,165.89,165.86,0.66]
[1752473868053,16.78468397,165.89,165.86,11.11705702]
[1752473868231,16.78468397,165.9,165.87,0.66]
[1752473868438,16.78468397,165.9,165.88,31.3]
[1752473868638,27.91174099,165.9,165.88,31.3]
[1752473869033,23.72862996,165.9,165.88,31.3]
[1752473869329,23.05862996,165.9,165.88,31.3]
[1752473869521,6.27394599,165.89,165.87,31.3]
[1752473869724,6.94394599,165.89,165.87,31.3]
[1752473869928,28.483599,165.9,165.87,31.3]
[1752473870132,16.78468397,165.9,165.87,31.96]
[1752473870353,23.05862996,165.9,165.87,31.96]
[1752473870768,16.78468397,165.91,165.88,0.66]
[1752473870948,0.06,165.93,165.89,0.66]
[1752473871131,16.78468397,165.92,165.89,0.66]
[1752473872160,16.84468397,165.93,165.89,6.93394599]
[1752473872455,23.78862996,165.93,165.89,0.66]
[1752473872758,23.11862996,165.93,165.9,0.66]
[1752473872929,0.06,165.93,165.91,31.96]
[1752473873256,6.94394599,165.92,165.88,1.6464]
[1752473873449,23.72862996,165.92,165.91,31.3]
[1752473874132,17.45468397,165.92,165.91,31.3]
[1752473874334,23.72862996,165.92,165.91,31.3]
[1752473875255,16.78468397,165.92,165.91,31.3]
[1752473875642,16.78468397,165.92,165.9,31.3]
[1752473876955,16.78468397,165.92,165.9,31.96]
[1752473877159,16.78468397,165.92,165.9,31.3]
[1752473877349,16.78468397,165.92,165.9,31.96]
[1752473877540,16.78468397,165.92,165.9,31.3]
[1752473879069,17.45468397,165.92,165.9,31.3]
[1752473879367,23.72862996,165.91,165.88,1.6464]
[1752473879661,23.72862996,165.91,165.89,31.28]
[1752473880749,11.6983407,165.92,165.89,31.28]
[1752473880941,12.3683407,165.92,165.89,31.28]
[1752473881649,6.27394599,165.91,165.89,31.28]
[1752473881850,6.95394599,165.91,165.89,31.28]
[1752473882556,18.98514687,165.92,165.88,1.6464]
[1752473882749,23.05862996,165.89,165.88,31.28]
[1752473882952,29.16391177,165.89,165.85,31.31]
[1752473883151,6.27394599,165.87,165.85,31.31]
[1752473883750,16.78468397,165.87,165.85,31.31]
[1752473883942,23.05862996,165.87,165.85,31.31]
[1752473884159,6.27394599,165.86,165.85,31.31]
[1752473884960,6.27394599,165.87,165.85,31.31]
[1752473885666,23.05862996,165.87,165.85,31.31]
[1752473886172,23.05862996,165.87,165.85,32.03]
[1752473886560,0.06,165.91,165.86,0.72]
[1752473886865,0.06,165.91,165.88,6.27394599]
[1752473887072,0.06,165.91,165.89,38.27394599]
[1752473887452,0.06,165.91,165.89,32.0]
[1752473887849,23.73862996,165.9,165.85,0.03]
[1752473888049,0.06,165.91,165.88,6.27394599]
[1752473888253,0.06,165.91,165.89,38.27394599]
[1752473888446,0.06,165.91,165.9,0.72]
[1752473889868,0.06,165.91,165.9,2.2554]
[1752473890077,0.06,165.91,165.9,8.52934599]
[1752473890284,0.06,165.91,165.9,2.2554]
[1752473891747,0.06,165.91,165.88,0.72]
[1752473891748,6.33394599,165.91,165.88,0.72]
[1752473891953,6.27394599,165.9,165.89,31.28]
[1752473892483,7.01394599,165.91,165.89,31.28]
[1752473892871,6.33394599,165.91,165.89,32.0]
[1752473893477,16.84468397,165.91,165.89,32.0]
[1752473894275,5.48479136,165.91,165.89,31.28]
[1752473894572,5.48479136,165.91,165.9,0.72]
[1752473894774,0.06,165.91,165.9,0.72]
[1752473895157,0.06,165.91,165.89,31.28]
[1752473895158,5.48462781,165.91,165.89,31.28]
[1752473895391,5.48462781,165.91,165.89,32.0]
[1752473895759,5.48462781,165.91,165.89,31.28]
[1752473895760,11.7585738,165.91,165.89,31.28]
[1752473896073,22.94931178,165.91,165.9,31.26]
[1752473896265,29.22325777,165.91,165.9,31.26]
[1752473896576,22.26931178,165.91,165.9,31.26]
[1752473896957,28.54325777,165.91,165.9,31.26]